bitfinex/quotes_SOLUSD_20260120
["timestamp","ask_amount","ask_price","bid_price","bid_amount"]
[1768932946442,19.85998431,127.55,127.46,2.2]
[1768932946443,2.97965446,127.49,127.46,2.2]
[1768932946629,2.97965446,127.48,127.45,17.2]
[1768932946938,2.97965446,127.49,127.46,1.2795185]
[1768932947121,2.97965446,127.5,127.46,3.93950281]
[1768932948621,2.97965446,127.5,127.46,2.2]
[1768932948843,2.97965446,127.5,127.46,6.14303911]
[1768932949028,2.97965446,127.5,127.47,2.65998431]
[1768932949337,2.97965446,127.5,127.46,13.98860284]
[1768932949831,2.97965446,127.5,127.46,6.14303911]
[1768932951026,2.97965446,127.49,127.46,2.2]
[1768932951637,2.97965446,127.49,127.46,6.14819269]
[1768932952636,2.97965446,127.49,127.46,2.2]
[1768932954828,2.97965446,127.48,127.46,2.2]
[1768932956046,2.97965446,127.51,127.47,3.9547921]
[1768932957752,2.97965446,127.5,127.47,2.65998431]
[1768932959747,2.97965446,127.5,127.46,6.15797919]
[1768932959920,2.97965446,127.5,127.46,4.85998431]
[1768932960236,2.97965446,127.48,127.44,19.83998431]
[1768932960443,2.97965446,127.47,127.44,2.2]
[1768932960818,2.97965446,127.46,127.44,2.2]
[1768932961016,2.97965446,127.46,127.42,28.9900856]
[1768932961017,2.65998431,127.46,127.42,2.2]
[1768932961244,2.97965446,127.44,127.41,2.2]
[1768932961437,2.97965446,127.43,127.39,3.96262386]
[1768932961619,2.97965446,127.42,127.37,3.96413666]
[1768932961814,2.97965446,127.42,127.36,4.16413666]
[1768932961815,2.97965446,127.41,127.36,4.16413666]
[1768932962017,2.94811005,127.4,127.36,12.01588805]
[1768932962251,2.94811005,127.4,127.37,2.65998431]
[1768932962851,2.94811005,127.4,127.36,12.01588805]
[1768932964326,2.97965446,127.41,127.37,1.34013168]
[1768932965044,2.97965446,127.39,127.36,0.2]
[1768932965443,2.65998431,127.39,127.36,0.2]
[1768932965647,2.65998431,127.38,127.36,0.2]
[1768932966144,2.65998431,127.37,127.35,0.2]
[1768932966337,2.59998432,127.37,127.35,0.2]
[1768932966833,19.62169374,127.41,127.35,0.2]
[1768932967018,10.50742996,127.43,127.38,2.65998431]
[1768932967418,2.97965446,127.42,127.38,2.65998431]
[1768932968440,2.97965446,127.43,127.39,4.25578229]
[1768932968824,2.97965446,127.42,127.38,8.25521252]
[1768932969433,2.97965446,127.42,127.39,6.65941454]
[1768932970747,2.97965446,127.42,127.38,1.59579798]
[1768932970748,17.48715843,127.42,127.38,8.25521252]
[1768932970950,2.97965446,127.41,127.37,23.85941454]
[1768932971719,2.97965446,127.41,127.38,6.65941454]
[1768932971926,2.97965446,127.42,127.38,8.25905807]
[1768932972123,17.48618659,127.44,127.39,6.65941454]
[1768932972352,2.97965446,127.44,127.4,8.25905807]
[1768932972736,9.639069,127.44,127.4,6.65941454]
[1768932973042,2.97965446,127.42,127.38,6.65941454]
[1768932973239,2.97965446,127.42,127.37,18.80075325]
[1768932973553,2.97965446,127.42,127.38,6.65941454]
[1768932974338,2.97965446,127.42,127.39,6.65941454]
[1768932974848,10.82783842,127.42,127.38,6.65941454]
[1768932975049,2.97086188,127.41,127.38,6.65941454]
[1768932975245,2.97086188,127.42,127.38,8.26342106]
[1768932975753,2.97086188,127.42,127.39,6.65941454]
[1768932976051,2.97086188,127.43,127.39,8.26448067]
[1768932976652,19.61614099,127.45,127.39,8.26448067]
[1768932976653,2.97086188,127.45,127.4,1.60611356]
[1768932976852,2.97086188,127.46,127.43,6.65941454]
[1768932977060,2.97086188,127.46,127.44,6.65941454]
[1768932977369,2.97086188,127.47,127.44,6.65941454]
[1768932977536,2.97086188,127.49,127.45,6.65941454]
[1768932977856,2.97086188,127.49,127.46,6.65941454]
[1768932978060,6.65941454,127.51,127.47,6.65941454]
[1768932978355,6.65941454,127.53,127.49,6.65941454]
[1768932978542,14.50128152,127.53,127.49,6.65941454]
[1768932978742,6.65941454,127.51,127.46,6.65941454]
[1768932979246,6.65941454,127.52,127.47,9.68494182]
[1768932979445,27.44509759,127.53,127.47,9.68494182]
[1768932979637,6.65941454,127.52,127.48,6.65941454]
[1768932980041,2.97086188,127.52,127.47,3.02552728]
[1768932980239,2.97086188,127.52,127.44,19.61652013]
[1768932980240,2.97086188,127.52,127.48,3.02552728]
[1768932980450,10.81299957,127.52,127.48,9.68494182]
[1768932980653,17.47241411,127.52,127.48,9.68494182]
[1768932981043,10.81299957,127.52,127.48,9.68494182]
[1768932981248,17.47241411,127.52,127.48,9.68494182]
[1768932982466,17.47241411,127.52,127.46,7.84511331]
[1768932982467,2.97086188,127.51,127.47,6.65941454]
[1768932982758,2.97086188,127.5,127.46,9.68494182]
[1768932983948,2.97086188,127.49,127.46,6.65941454]
[1768932984247,14.50255908,127.5,127.46,9.68494182]
[1768932984446,0.1,127.55,127.5,3.02552728]
[1768932984637,14.49920061,127.56,127.51,9.68494182]
[1768932984955,14.49920061,127.56,127.49,6.65941454]
[1768932984956,2.97086188,127.53,127.49,6.65941454]
[1768932985155,23.85941454,127.54,127.49,6.65941454]
[1768932985346,23.85941454,127.54,127.49,9.68494182]
[1768932985547,7.84129224,127.53,127.49,9.68494182]
[1768932985854,14.50070678,127.53,127.49,9.68494182]
[1768932986155,6.65941454,127.52,127.49,3.02552728]
[1768932986377,14.50070678,127.53,127.49,3.02552728]
[1768932986553,6.65941454,127.51,127.47,3.02552728]
[1768932987560,9.31778369,127.52,127.48,3.02552728]
[1768932988057,9.31883407,127.51,127.46,3.02552728]
[1768932988262,9.31883407,127.51,127.46,9.68494182]
[1768932988439,2.66045784,127.49,127.45,9.68494182]
[1768932988638,6.65941454,127.48,127.44,3.02552728]
[1768932988961,17.2,127.5,127.46,3.02552728]
[1768932988962,2.66113127,127.49,127.46,3.02552728]
[1768932989136,2.66113127,127.48,127.45,3.02552728]
[1768932990364,10.50550028,127.48,127.45,3.02552728]
[1768932990747,2.66113127,127.48,127.45,3.02552728]
[1768932991766,10.50577262,127.48,127.45,3.02552728]
[1768932991963,2.66113127,127.47,127.44,3.02552728]
[1768932994755,5.33516554,127.48,127.44,3.02552728]
[1768932995662,10.54023907,127.5,127.45,3.02552728]
[1768932995840,2.66113127,127.5,127.46,3.02552728]
[1768932996044,10.50427854,127.5,127.46,3.02552728]
[1768932996464,13.20639573,127.5,127.46,3.02552728]
[1768932996670,2.66113127,127.49,127.46,3.02552728]
[1768932997263,5.36324846,127.5,127.46,3.02552728]
[1768932997846,2.66113127,127.49,127.46,3.02552728]
[1768932999145,2.71290396,127.49,127.45,5.22552728]
[1768932999349,13.21678282,127.51,127.47,3.02552728]
[1768932999669,2.66113127,127.5,127.47,3.02552728]
[1768932999972,2.66113127,127.5,127.46,3.02552728]
[1768932999973,2.66113127,127.49,127.46,3.02552728]
[1768933001650,10.50517028,127.49,127.46,3.02552728]
[1768933001856,2.72862393,127.47,127.45,2.2]
[1768933002170,2.66862394,127.47,127.43,5.68665855]
[1768933002379,2.66862394,127.47,127.44,3.02552728]
[1768933003271,2.66113127,127.48,127.44,3.02552728]
[1768933003962,13.18974122,127.48,127.44,3.02552728]
[1768933004452,5.3449397,127.48,127.44,3.02552728]
[1768933004656,13.1893075,127.48,127.44,3.02552728]
[1768933004877,13.18984572,127.48,127.44,3.02552728]
[1768933009685,2.66166949,127.47,127.44,3.02552728]
[1768933010077,5.37893248,127.47,127.44,3.32257296]
[1768933010780,5.37893248,127.47,127.43,5.52257296]
[1768933011290,13.22403252,127.47,127.43,5.52257296]
[1768933012571,13.22403252,127.47,127.44,3.32257296]
[1768933012887,5.39246533,127.46,127.43,2.2]
[1768933013589,2.66166949,127.46,127.43,5.52257296]
[1768933013771,2.66166949,127.46,127.43,3.32257296]
[1768933014277,10.58030361,127.47,127.43,3.32257296]
[1768933014485,5.39687306,127.47,127.43,3.32257296]
[1768933016887,2.7481253,127.49,127.44,3.32257296]
[1768933017094,2.66166949,127.5,127.46,3.32257296]
[1768933017503,10.59453683,127.52,127.48,3.32257296]
[1768933017696,5.41400347,127.54,127.5,3.32257296]
[1768933018593,13.25519532,127.54,127.5,3.32257296]
[1768933018998,10.59352583,127.54,127.5,3.32257296]
[1768933019176,5.41816381,127.53,127.49,3.32257296]
[1768933019566,7.84119185,127.54,127.5,3.32257296]
[1768933019773,5.42227637,127.57,127.53,3.32257296]
[1768933020091,2.76060688,127.56,127.52,5.98424245]
[1768933020275,5.42227637,127.56,127.52,5.98424245]
[1768933020590,5.42227637,127.56,127.51,5.98424245]
[1768933020591,2.76467219,127.55,127.51,5.98424245]
[1768933020794,5.42634168,127.55,127.51,3.32257296]
[1768933020984,5.42634168,127.55,127.51,5.98424245]
[1768933021495,10.60827621,127.56,127.52,5.98424245]
[1768933021681,13.2699457,127.56,127.52,5.98424245]
[1768933022096,10.60629564,127.59,127.54,5.98424245]
[1768933022395,2.80266328,127.58,127.54,5.95424245]
[1768933023295,10.64095186,127.58,127.54,5.95424245]
[1768933023480,13.30262135,127.58,127.54,5.95424245]
[1768933023683,19.69264568,127.6,127.54,5.95424245]
[1768933023684,5.46825961,127.59,127.55,2.66166949]
[1768933024698,5.46825961,127.59,127.55,5.98424245]
[1768933025487,13.30602316,127.59,127.55,5.98424245]
[1768933025672,13.30602316,127.59,127.55,3.32257296]
[1768933026191,13.30602316,127.59,127.55,3.29257296]
[1768933027503,5.51353662,127.58,127.53,4.86166949]
[1768933027672,5.51353662,127.58,127.53,2.2]
[1768933027877,2.66166949,127.57,127.53,4.86166949]
[1768933028083,2.85186713,127.56,127.52,2.66166949]
[1768933028292,5.51353662,127.56,127.52,2.66166949]
[1768933028494,5.51353662,127.56,127.53,3.32257296]
[1768933029379,2.85186713,127.56,127.53,3.32257296]
[1768933030283,2.66166949,127.58,127.55,3.32257296]
[1768933030611,5.5209375,127.59,127.55,5.98424245]
[1768933030773,13.35857892,127.59,127.55,5.98424245]
[1768933031443,13.35857892,127.59,127.55,3.32257296]
[1768933031903,2.66166949,127.58,127.55,3.32257296]
[1768933033604,13.35857892,127.59,127.55,3.32257296]
[1768933033910,5.53526037,127.58,127.54,5.98424245]
[1768933034109,2.66166949,127.57,127.54,3.32257296]
[1768933034403,5.53526037,127.56,127.52,20.50257296]
[1768933034600,2.66166949,127.55,127.52,3.32257296]
[1768933034801,10.50199716,127.55,127.52,3.32257296]
[1768933035585,2.88391294,127.53,127.49,20.33458137]
[1768933035899,5.54558243,127.52,127.48,3.15458137]
[1768933036905,2.66166949,127.52,127.49,3.15458137]
[1768933037208,10.72672299,127.56,127.5,3.15458137]
[1768933037411,2.66166949,127.54,127.5,3.15458137]
[1768933038201,2.66166949,127.53,127.5,3.15458137]
[1768933039912,2.66166949,127.54,127.5,3.15458137]
[1768933040416,2.66166949,127.53,127.5,3.15458137]
[1768933045616,2.66166949,127.51,127.48,5.35458137]
[1768933045922,2.66166949,127.5,127.48,5.35458137]
[1768933046218,2.66166949,127.5,127.48,3.15458137]
[1768933047096,2.66166949,127.52,127.48,3.15458137]
[1768933047325,2.66166949,127.53,127.49,3.15458137]
[1768933047614,2.66166949,127.53,127.49,5.35458137]
[1768933047819,2.66166949,127.53,127.5,3.15458137]
[1768933048593,2.66166949,127.53,127.49,2.2]
[1768933048594,2.66166949,127.52,127.49,5.35458137]
[1768933048807,2.66166949,127.53,127.5,3.15458137]
[1768933049724,2.66166949,127.53,127.5,3.12458137]
[1768933049904,13.46063686,127.53,127.5,3.12458137]
[1768933050110,5.6192922,127.58,127.52,2.66166949]
[1768933050314,10.49927431,127.59,127.54,2.66166949]
[1768933052620,2.66166949,127.59,127.55,5.81625086]
[1768933053010,10.89774198,127.6,127.55,5.81625086]
[1768933053218,13.55941147,127.6,127.55,5.81625086]
[1768933053420,13.55941147,127.6,127.56,5.81625086]
[1768933053914,13.55941147,127.6,127.56,3.15458137]
[1768933054624,0.1,127.63,127.55,2.66166949]
[1768933054824,0.1,127.63,127.61,5.81625086]
[1768933055207,0.1,127.63,127.61,3.15458137]
[1768933055408,2.76166949,127.63,127.61,3.15458137]
[1768933055731,0.1,127.63,127.61,3.15458137]
[1768933056630,0.1,127.63,127.6,2.66166949]
[1768933056631,0.1,127.64,127.63,2.66166949]
[1768933056826,0.1,127.64,127.62,5.81625086]
[1768933057029,0.1,127.64,127.6,7.83671909]
[1768933057030,2.66166949,127.63,127.6,3.15458137]
[1768933057220,2.66166949,127.62,127.58,3.15458137]
[1768933057728,2.66166949,127.61,127.58,3.15458137]
[1768933058637,2.66166949,127.59,127.56,3.15458137]
[1768933058825,0.1,127.64,127.57,3.15458137]
[1768933059034,0.02196204,127.68,127.63,3.15458137]
[1768933059321,2.66166949,127.67,127.63,3.15458137]
[1768933060252,0.02196204,127.68,127.63,3.15458137]
[1768933060427,2.68363153,127.68,127.63,5.81625086]
[1768933060755,19.84166949,127.67,127.63,3.15458137]
[1768933060915,6.63580784,127.66,127.63,3.15458137]
[1768933061113,23.81580784,127.66,127.63,3.15458137]
[1768933061333,6.63580784,127.65,127.61,3.15458137]
[1768933061636,0.12343426,127.71,127.65,3.15458137]
[1768933061814,6.63580784,127.7,127.66,3.15458137]
[1768933062336,6.63580784,127.68,127.64,3.15458137]
[1768933062513,17.18,127.67,127.64,3.15458137]
[1768933062715,23.81580784,127.67,127.64,3.15458137]
[1768933063118,6.63580784,127.67,127.64,3.15458137]
[1768933063329,17.18,127.66,127.64,3.15458137]
[1768933063820,23.81580784,127.66,127.64,3.15458137]
[1768933064008,23.81580784,127.66,127.63,3.42314916]
[1768933065308,6.63580784,127.65,127.63,3.42314916]
[1768933065743,23.81580784,127.66,127.63,3.42314916]
[1768933066934,23.81608908,127.66,127.63,3.42314916]
[1768933067530,6.63608908,127.64,127.61,3.25605583]
[1768933067910,0.10924218,127.69,127.63,3.25605583]
[1768933068110,23.81608908,127.68,127.64,3.25605583]
[1768933068340,6.63608908,127.67,127.64,3.25605583]
[1768933068516,6.63608908,127.66,127.64,3.25605583]
[1768933068716,6.63608908,127.65,127.62,3.25605583]
[1768933068917,17.18,127.64,127.62,3.25605583]
[1768933069616,6.63608908,127.66,127.62,3.25605583]
[1768933069932,17.18,127.63,127.62,3.25605583]
[1768933070118,6.63608908,127.66,127.62,3.25605583]
[1768933070309,17.18,127.65,127.62,3.25605583]
[1768933071311,17.18,127.64,127.62,3.25605583]
[1768933071509,23.81608908,127.66,127.62,3.25605583]
[1768933072109,6.63608908,127.65,127.62,3.25605583]
[1768933072311,6.63608908,127.63,127.59,3.25605583]
[1768933072519,6.63608908,127.61,127.59,3.25605583]
[1768933074536,6.63608908,127.61,127.58,3.25605583]
[1768933074737,6.63608908,127.6,127.58,3.25605583]
[1768933075115,0.09947611,127.62,127.58,3.25605583]
[1768933075321,0.09814431,127.69,127.62,3.25605583]
[1768933075636,6.73423339,127.69,127.64,9.89214491]
[1768933075932,6.63608908,127.68,127.64,3.25605583]
[1768933076133,6.63608908,127.67,127.64,3.25605583]
[1768933076509,6.63608908,127.65,127.61,3.25605583]
[1768933076730,6.63608908,127.62,127.58,3.25605583]
[1768933076917,6.63608908,127.61,127.58,3.25605583]
[1768933077613,0.09552644,127.61,127.56,3.25605583]
[1768933077828,6.63608908,127.59,127.56,3.25605583]
[1768933078621,0.09552644,127.61,127.56,3.25605583]
[1768933078820,6.63608908,127.61,127.57,3.25605583]
[1768933080042,6.63608908,127.6,127.57,3.25605583]
[1768933081042,25.10963837,127.63,127.54,19.60083714]
[1768933081043,6.63608908,127.59,127.55,3.25605583]
[1768933081456,6.63608908,127.58,127.55,3.25605583]
[1768933082323,6.63608908,127.59,127.55,3.25605583]
[1768933083236,6.63608908,127.58,127.55,3.25605583]
[1768933083441,0.08802614,127.67,127.58,3.25605583]
[1768933083638,0.08802614,127.67,127.59,3.25605583]
[1768933083837,6.63608908,127.63,127.59,3.25605583]
[1768933084135,0.08802614,127.64,127.59,3.25605583]
[1768933084136,6.63608908,127.62,127.59,3.25605583]
[1768933085445,6.63608908,127.61,127.58,3.25605583]
[1768933085937,6.63608908,127.62,127.58,3.25605583]
[1768933086326,6.63608908,127.6,127.56,3.25605583]
[1768933086532,6.63608908,127.59,127.56,3.25605583]
[1768933086945,6.63608908,127.57,127.54,3.25605583]
[1768933087567,6.63608908,127.56,127.54,3.25605583]
[1768933087772,6.63608908,127.56,127.52,3.25605583]
[1768933087942,6.63608908,127.56,127.53,3.25605583]
[1768933088776,6.63608908,127.55,127.53,3.25605583]
[1768933089081,7.91853747,127.61,127.55,3.25605583]
[1768933089261,6.63608908,127.63,127.58,3.25605583]
[1768933089561,6.63608908,127.6,127.56,3.25605583]
[1768933091762,6.63608908,127.57,127.54,3.25605583]
[1768933091959,6.63608908,127.59,127.55,3.25605583]
[1768933092143,6.63608908,127.59,127.56,3.25605583]
[1768933092461,6.63608908,127.58,127.56,3.25605583]
[1768933093273,0.07662509,127.66,127.57,3.25605583]
[1768933093572,6.63608908,127.63,127.59,3.25605583]
[1768933094853,6.63608908,127.62,127.59,3.22605583]
[1768933095252,19.68846011,127.66,127.59,3.22605583]
[1768933095457,6.63608908,127.63,127.58,16.67406801]
[1768933095656,6.63608908,127.62,127.58,2.2]
[1768933096567,6.63608908,127.61,127.58,2.2]
[1768933097645,6.63608908,127.61,127.57,3.11906747]
[1768933099062,6.63608908,127.6,127.56,3.11906747]
[1768933099967,6.63608908,127.6,127.56,10.95847352]
[1768933100963,6.63608908,127.6,127.56,3.11906747]
[1768933105349,23.91647964,127.61,127.57,3.11906747]
[1768933106072,23.91647964,127.61,127.55,16.67589031]
[1768933106073,6.63608908,127.6,127.55,13.1588687]
[1768933106377,39.17070223,127.65,127.59,3.11906747]
[1768933106378,7.83453462,127.64,127.59,3.11906747]
[1768933106585,6.63608908,127.62,127.59,3.11906747]
[1768933106757,6.63608908,127.62,127.57,3.11906747]
[1768933106953,6.63608908,127.61,127.57,3.11906747]
[1768933107462,6.63608908,127.59,127.56,2.2]
[1768933108373,6.63608908,127.58,127.56,2.2]
[1768933108672,6.63608908,127.58,127.55,3.11906747]
[1768933109077,0.5308,127.59,127.55,3.11906747]
[1768933109574,7.10688909,127.59,127.55,3.11906747]
[1768933110668,6.63608908,127.57,127.54,3.11906747]
[1768933111175,6.63608908,127.56,127.53,3.11906747]
[1768933111383,6.63608908,127.54,127.51,3.11906747]
[1768933111761,6.63608908,127.53,127.49,3.11906747]
[1768933112277,6.63608908,127.52,127.49,3.11906747]
[1768933112677,6.63608908,127.51,127.49,3.11906747]
[1768933112876,6.63608908,127.52,127.49,3.11906747]
[1768933114256,6.63608908,127.55,127.5,3.11906747]
[1768933114571,14.47575936,127.56,127.51,3.11906747]
[1768933115156,0.55634731,127.59,127.52,3.11906747]
[1768933115354,6.63608908,127.58,127.54,3.11906747]
[1768933115567,7.10688909,127.59,127.54,3.11906747]
[1768933115963,6.63608908,127.58,127.54,3.11906747]
[1768933117060,6.63608908,127.56,127.54,3.11906747]
[1768933117262,6.63608908,127.57,127.54,3.11906747]
[1768933118184,6.63608908,127.58,127.54,3.11906747]
[1768933119064,8.30863875,127.59,127.52,16.67755131]
[1768933119065,6.63608908,127.56,127.52,5.31906747]
[1768933119560,6.63608908,127.56,127.53,3.11906747]
[1768933120169,0.08224276,127.57,127.53,3.11906747]
[1768933120371,6.63608908,127.56,127.53,3.11906747]
[1768933122863,6.63608908,127.56,127.51,3.11906747]
[1768933122864,6.63608908,127.55,127.51,3.11906747]
[1768933123065,6.63608908,127.54,127.49,22.68825832]
[1768933123280,6.63608908,127.54,127.5,3.30825832]
[1768933123487,6.63608908,127.53,127.5,3.30825832]
[1768933123888,0.07832114,127.55,127.5,3.30825832]
[1768933123889,7.84033111,127.55,127.5,3.30825832]
[1768933124184,6.63608908,127.54,127.5,3.30825832]
[1768933127075,6.63608908,127.54,127.51,7.3]
[1768933128889,6.64983609,127.53,127.51,7.3]
[1768933129088,7.91423967,127.54,127.49,3.26224303]
[1768933129089,6.64983609,127.52,127.49,3.26224303]
[1768933129989,6.64983609,127.51,127.48,3.26224303]
[1768933130194,7.1206361,127.52,127.48,3.26224303]
[1768933130892,7.1206361,127.52,127.47,19.38]
[1768933130893,6.64983609,127.5,127.47,22.64224303]
[1768933131193,6.64983609,127.5,127.47,3.26224303]
[1768933131510,6.64983609,127.5,127.45,3.46224303]
[1768933131511,6.64983609,127.48,127.45,3.46224303]
[1768933131670,6.64983609,127.46,127.44,0.2]
[1768933131870,6.64983609,127.45,127.43,0.2]
[1768933132077,6.64983609,127.44,127.4,7.35770518]
[1768933132368,6.64983609,127.43,127.4,3.26224303]
[1768933132768,6.64983609,127.43,127.38,17.18]
[1768933132769,6.64983609,127.42,127.38,17.18]
[1768933132973,6.64983609,127.42,127.39,3.26224303]
[1768933133591,14.49762115,127.43,127.39,3.26224303]
[1768933137897,7.84778506,127.43,127.39,3.26224303]
[1768933138201,14.49762115,127.43,127.39,3.26224303]
[1768933140902,6.64983609,127.42,127.39,3.26224303]
[1768933141107,6.64983609,127.42,127.37,3.26224303]
[1768933141403,6.64983609,127.4,127.36,3.46224303]
[1768933141591,6.64983609,127.38,127.36,0.2]
[1768933141781,5.34408856,127.41,127.33,3.46224303]
[1768933141980,6.64983609,127.36,127.33,3.46224303]
[1768933142192,6.5898361,127.36,127.33,3.46224303]
[1768933142697,6.64983609,127.36,127.33,0.2]
[1768933143106,6.64983609,127.35,127.33,0.2]
[1768933143503,14.50187796,127.36,127.33,0.2]
[1768933145097,6.64983609,127.37,127.33,3.46224303]
[1768933146013,14.50121311,127.37,127.33,3.46224303]
[1768933146718,6.64983609,127.36,127.33,3.46224303]
[1768933147015,14.50121311,127.37,127.33,3.46224303]
[1768933147715,6.64983609,127.36,127.33,0.2]
[1768933147911,6.64983609,127.35,127.33,0.2]
[1768933148112,14.50282807,127.34,127.3,0.2]
[1768933148292,6.64983609,127.32,127.3,0.2]
[1768933148809,6.64983609,127.33,127.3,0.2]
[1768933150114,14.50406166,127.32,127.3,0.2]
[1768933150987,14.97486167,127.32,127.3,0.2]
[1768933152901,6.64983609,127.31,127.28,0.2]
[1768933153105,14.97486167,127.32,127.28,0.2]
[1768933153488,14.97486167,127.32,127.28,3.46224303]
[1768933154213,8.32502558,127.32,127.28,3.46224303]
[1768933155589,10.99371687,127.32,127.28,3.46224303]
[1768933156903,14.99759839,127.32,127.28,3.46224303]
[1768933158126,0.47080001,127.32,127.29,3.27340994]
[1768933158325,8.32514314,127.32,127.29,3.27340994]
[1768933159005,14.99771595,127.32,127.29,3.27340994]
[1768933159796,6.67257281,127.3,127.26,3.27340994]
[1768933160309,27.96070707,127.32,127.26,3.27340994]
[1768933160310,6.67257281,127.29,127.26,3.27340994]
[1768933160818,6.67257281,127.28,127.25,0.2]
[1768933161019,14.99771595,127.32,127.26,3.27340994]
[1768933161319,14.99771595,127.32,127.27,3.27340994]
[1768933161813,8.32514314,127.32,127.28,3.27340994]
[1768933162015,14.52691594,127.32,127.28,3.27340994]
[1768933162819,19.63457061,127.33,127.29,3.27340994]
[1768933162820,7.85390445,127.33,127.29,3.27340994]
[1768933163421,14.52586262,127.34,127.29,3.27340994]
[1768933163621,7.85328981,127.34,127.29,3.27340994]
[1768933163814,14.52586262,127.34,127.29,3.27340994]
[1768933164723,34.15834259,127.34,127.29,3.27340994]
[1768933164930,6.67257281,127.33,127.29,3.27340994]
[1768933165518,6.67257281,127.33,127.27,3.27340994]
[1768933165519,6.67257281,127.32,127.27,3.27340994]
[1768933165718,34.16072291,127.33,127.28,3.27340994]
[1768933168132,14.52670108,127.33,127.28,3.27340994]
[1768933170212,7.85299198,127.34,127.29,3.27340994]
[1768933170430,39.25748319,127.37,127.28,6.67257281]
[1768933170431,6.67257281,127.37,127.32,3.27340994]
[1768933170633,6.67257281,127.38,127.33,3.27340994]
[1768933171337,14.52248253,127.39,127.34,3.27340994]
[1768933172135,34.61805685,127.39,127.34,3.27340994]
[1768933173836,7.85114234,127.37,127.33,3.27340994]
[1768933181018,7.85078182,127.38,127.34,2.66635351]
[1768933181334,7.85078182,127.38,127.35,3.27340994]
[1768933182242,30.14103754,127.39,127.35,3.27340994]
[1768933182438,30.14103754,127.39,127.34,3.27340994]
[1768933182626,2.66635351,127.38,127.34,3.27340994]
[1768933184142,7.85114234,127.37,127.34,3.27340994]
[1768933186046,7.85080412,127.38,127.34,3.27340994]
[1768933187039,27.47711908,127.38,127.34,3.27340994]
[1768933189528,7.85080412,127.38,127.34,3.27340994]
[1768933189726,7.85080412,127.38,127.35,3.35044656]
[1768933190938,7.84990972,127.39,127.35,3.35044656]
[1768933192952,8.32070973,127.39,127.35,3.35044656]
[1768933194549,8.32070973,127.39,127.37,3.35044656]
[1768933194550,0.47080001,127.39,127.37,3.35044656]
[1768933194746,0.47080001,127.39,127.37,3.32044656]
[1768933197351,0.47080001,127.39,127.38,3.35044656]
[1768933198153,7.84879458,127.41,127.38,3.35044656]
[1768933198745,8.31953651,127.41,127.36,6.01660746]
[1768933198930,7.84879458,127.41,127.37,3.35044656]
[1768933199333,7.84879458,127.41,127.37,2.6661609]
[1768933199538,7.84879458,127.41,127.38,3.35044656]
[1768933199740,7.84830319,127.42,127.39,3.35044656]
[1768933199939,7.84830319,127.42,127.39,3.32044656]
[1768933201049,3.13662813,127.43,127.39,3.32044656]
[1768933201050,7.84744565,127.43,127.39,3.32044656]
[1768933201353,7.8462142,127.45,127.41,2.6661609]
[1768933201658,3.16611321,127.43,127.38,17.2]
[1768933201861,3.16611321,127.43,127.39,3.35044656]
[1768933202039,0.49995231,127.44,127.4,3.35044656]
[1768933202650,30.62760988,127.45,127.4,3.35044656]
[1768933202850,27.96144898,127.45,127.4,3.35044656]
[1768933203050,2.6661609,127.44,127.4,3.35044656]
[1768933203258,2.6661609,127.43,127.4,3.35044656]
[1768933204080,2.6661609,127.43,127.39,3.35044656]
[1768933205264,7.84806152,127.42,127.39,3.35044656]
[1768933205449,7.84806152,127.42,127.36,3.35044656]
[1768933205450,2.6661609,127.4,127.36,3.35044656]
[1768933206460,2.6661609,127.37,127.34,20.55044656]
[1768933206865,2.6661609,127.37,127.34,3.35044656]
[1768933207034,2.6661609,127.38,127.34,3.35044656]
[1768933207239,10.5170483,127.38,127.34,3.35044656]
[1768933207447,2.6661609,127.37,127.34,3.35044656]
[1768933207652,2.6661609,127.36,127.32,3.35044656]
[1768933207856,2.6661609,127.37,127.32,3.35044656]
[1768933208051,2.6661609,127.35,127.32,3.35044656]
[1768933208267,2.6661609,127.34,127.31,3.35044656]
[1768933209541,10.51897769,127.35,127.31,3.35044656]
[1768933210045,2.6661609,127.34,127.31,3.35044656]
[1768933211766,10.51957808,127.34,127.31,3.35044656]
[1768933214652,2.6661609,127.34,127.31,3.35044656]
[1768933216466,10.51918721,127.34,127.31,3.35044656]
[1768933217660,2.6661609,127.34,127.31,3.35044656]
[1768933218770,2.6661609,127.33,127.31,3.35044656]
[1768933219672,2.6661609,127.33,127.29,3.1271161]
[1768933219851,2.6661609,127.34,127.3,3.1271161]
[1768933222483,2.6661609,127.35,127.31,5.793277]
[1768933222666,10.51857945,127.35,127.32,3.1271161]
[1768933222973,2.6661609,127.34,127.32,3.1271161]
[1768933223762,2.6661609,127.35,127.32,3.1271161]
[1768933223959,27.48115577,127.36,127.28,3.1271161]
[1768933224185,27.48115577,127.36,127.29,3.1271161]
[1768933224186,2.6661609,127.33,127.29,3.1271161]
[1768933225777,10.51987334,127.33,127.29,3.1271161]
[1768933228762,2.6661609,127.32,127.29,3.1271161]
[1768933228981,10.51987334,127.33,127.29,3.1271161]
[1768933229477,2.69025287,127.31,127.27,20.3271161]